fUSD/lending_fUSD_20260407
["ID","MTS","AMOUNT","RATE_DAILY","PERIOD"]
[419960237,1775557846993,-151.0,0.00013722,2]
[419960238,1775557847002,-151.0,0.00013722,2]
[419960239,1775557847012,-151.0,0.00013722,2]
[419960240,1775557847022,-151.0,0.00013722,2]
[419960241,1775557847031,-151.0,0.00013722,2]
[419960242,1775557847040,-151.0,0.00013722,2]
[419960243,1775557847049,-151.0,0.00013722,2]
[419960244,1775557847059,-151.0,0.00013722,2]
[419960245,1775557847068,-298.564354,0.00013722,2]
[419960246,1775557847077,-182.426512,0.00013722,2]
[419960247,1775557847087,-425.554164,0.00013722,2]
[419960248,1775557847097,-182.426512,0.00013722,2]
[419960249,1775557847107,-425.554164,0.00013722,2]
[419960250,1775557847116,-182.426512,0.00013722,2]
[419960251,1775557847126,-425.554164,0.00013722,2]
[419960252,1775557847136,-151.0,0.00013722,2]
[419960253,1775557847146,-182.426512,0.00013722,2]
[419960254,1775557847155,-731.85744,0.00013722,2]
[419960255,1775557847165,-425.554164,0.00013722,2]
[419960256,1775557847174,-151.0,0.00013722,2]
[419960257,1775557847184,-731.85744,0.00013722,2]
[419960258,1775557847194,-234.221107,0.00013722,2]
[419960259,1775557847204,-731.85744,0.00013722,2]
[419960260,1775557847214,-221.560918,0.00013722,2]
[419960261,1775557847223,-731.85744,0.00013722,2]
[419960262,1775557847234,-221.560918,0.00013722,2]
[419960263,1775557847244,-221.560918,0.00013722,2]
[419960264,1775557847254,-221.560918,0.00013722,2]
[419960265,1775557847263,-150.0,0.00013725,2]
[419960266,1775557847273,-150.0,0.00013725,2]
[419960267,1775557847283,-2414.0,0.00013728,2]
[419960268,1775557847292,-150.0,0.00013742,2]
[419960269,1775557847302,-150.0,0.00013742,2]
[419960270,1775557847311,-150.0,0.00013742,2]
[419960271,1775557847320,-150.0,0.00013752,2]
[419960272,1775557847330,-150.0,0.00013771,2]
[419960273,1775557847339,-151.0,0.00013776,2]
[419960274,1775557847349,-163.695412,0.00013776,2]
[419960275,1775557847358,-163.695412,0.00013776,2]
[419960276,1775557847367,-163.695412,0.00013776,2]
[419960277,1775557847377,-163.695412,0.00013776,2]
[419960278,1775557847388,-2364.0,0.00013776,2]
[419960279,1775557847398,-150.0,0.00013777,2]
[419960280,1775557847408,-150.0,0.0001378,2]
[419960281,1775557847417,-150.0,0.0001378,2]
[419960282,1775557847427,-150.0,0.00013786,2]
[419960283,1775557847436,-150.0,0.00013795,2]
[419960284,1775557847447,-155.26329613,0.00013796,2]
[419960285,1775557847456,-2289.79229921,0.000138,2]
[419960286,1775557847466,-2000.0,0.000138,2]
[419960287,1775557847475,-2414.0,0.00013807,2]
[419960288,1775557847484,-151.0,0.0001381,2]
[419960289,1775557847494,-150.0,0.00013812,2]
[419960290,1775557847504,-669.82976826,0.00013812,2]
[419960291,1775557847514,-500.0,0.00013812,2]
[419960292,1775557847524,-3000.0,0.00013813,2]
[419960293,1775557847535,-3000.0,0.00013813,2]
[419960294,1775557847545,-3000.0,0.00013813,2]
[419960295,1775557847554,-3000.0,0.00013813,2]
[419960296,1775557847564,-3000.0,0.00013813,2]
[419960297,1775557847573,-3000.0,0.00013813,2]
[419960298,1775557847582,-3000.0,0.00013813,2]
[419960299,1775557847591,-3000.0,0.00013813,2]
[419960300,1775557847601,-3000.0,0.00013813,2]
[419960301,1775557847610,-3000.0,0.00013813,2]
[419960302,1775557847619,-3000.0,0.00013813,2]
[419960303,1775557847628,-1190.03689927,0.00013813,2]
[419960304,1775557847637,-151.0,0.00013813,2]
[419960305,1775557847646,-452.256919,0.00013813,2]
[419960306,1775557847656,-452.256919,0.00013813,2]
[419960307,1775557847666,-151.0,0.00013813,2]
[419960308,1775557847676,-452.256919,0.00013813,2]
[419960309,1775557847686,-188.472304,0.00013813,2]
[419960310,1775557847696,-452.256919,0.00013813,2]
[419960311,1775557847705,-165.467398,0.00013813,2]
[419960312,1775557847715,-188.472304,0.00013813,2]
[419960313,1775557847725,-151.0,0.00013813,2]
[419960314,1775557847735,-1145.112529,0.00013813,2]
[419960315,1775557847744,-165.467398,0.00013813,2]
[419960316,1775557847755,-188.472304,0.00013813,2]
[419960317,1775557847764,-151.0,0.00013813,2]
[419960318,1775557847774,-1145.112529,0.00013813,2]
[419960319,1775557847783,-165.467398,0.00013813,2]
[419960320,1775557847793,-151.0,0.00013813,2]
[419960321,1775557847803,-188.472304,0.00013813,2]
[419960322,1775557847812,-151.0,0.00013813,2]
[419960323,1775557847822,-1145.112529,0.00013813,2]
[419960324,1775557847831,-165.467398,0.00013813,2]
[419960325,1775557847840,-151.0,0.00013813,2]
[419960326,1775557847851,-1145.112529,0.00013813,2]
[419960327,1775557847860,-151.0,0.00013813,2]
[419960328,1775557847870,-643.835703,0.00013813,2]
[419960329,1775557847879,-1202.17752,0.00013813,2]
[419960330,1775557847889,-1202.17752,0.00013813,2]
[419960331,1775557847899,-151.0,0.00013813,2]
[419960332,1775557847909,-643.835703,0.00013813,2]
[419960333,1775557847920,-1202.17752,0.00013813,2]
[419960334,1775557847930,-151.0,0.00013813,2]
[419960335,1775557847940,-643.835703,0.00013813,2]
[419960336,1775557847950,-151.0,0.00013813,2]
[419960337,1775557847959,-1202.17752,0.00013813,2]
[419960338,1775557847968,-151.0,0.00013813,2]
[419960339,1775557847977,-209.479319,0.00013813,2]
[419960340,1775557847988,-643.835703,0.00013813,2]
[419960341,1775557847997,-151.0,0.00013813,2]
[419960342,1775557848008,-209.479319,0.00013813,2]
[419960343,1775557848017,-209.479319,0.00013813,2]
[419960344,1775557848027,-209.479319,0.00013813,2]
[419960345,1775557848035,-151.0,0.00013813,2]
[419960346,1775557848045,-259.857901,0.00013813,2]
[419960347,1775557848055,-150.0,0.00013815,2]
[419960348,1775557848064,-151.0,0.00013816,2]
[419960349,1775557848073,-151.0,0.00013816,2]
[419960350,1775557848082,-448.12130915,0.00013816,2]
[419960351,1775557848091,-1317.92247189,0.00013816,2]
[419960352,1775557848100,-150.0,0.00013821,2]
[419960353,1775557848110,-166.66,0.00013836,2]
[419960354,1775557848120,-150.0,0.00013847,2]
[419960355,1775557848130,-150.0,0.00013847,2]
[419960356,1775557848139,-150.0,0.00013847,2]
[419960357,1775557848149,-150.0,0.00013847,2]
[419960358,1775557848159,-150.0,0.00013847,2]
[419960359,1775557848169,-150.0,0.00013872,2]
[419960360,1775557848179,-150.0,0.00013878,2]
[419960361,1775557848188,-150.0,0.00013881,2]
[419960362,1775557848197,-152.0,0.00013885,2]
[419960363,1775557848207,-152.0,0.00013887,4]
[419960364,1775557848217,-150.0,0.00013899,2]
[419960365,1775557848227,-150.0,0.00013907,2]
[419960366,1775557848237,-150.0,0.00013913,2]
[419960367,1775557848247,-150.0,0.00013913,2]
[419960368,1775557848258,-150.0,0.00013916,2]
[419960369,1775557848268,-150.0,0.00013922,2]
[419960370,1775557848278,-152.0,0.00013936,2]
[419960371,1775557848287,-150.0,0.00013942,2]
[419960372,1775557848296,-150.0,0.00013951,2]
[419960373,1775557848305,-150.0,0.00013951,2]
[419960374,1775557848315,-150.0,0.00013951,2]
[419960375,1775557848325,-189.96744883,0.00013965,2]
[419960376,1775557848334,-150.0,0.00013968,2]
[419960377,1775557848344,-150.0,0.00013968,2]
[419960378,1775557848354,-2364.0,0.00013971,2]
[419960379,1775557848364,-150.0,0.00013972,2]
[419960380,1775557848374,-150.0,0.00013973,2]
[419960381,1775557848383,-150.0,0.00013973,2]
[419960382,1775557848393,-166.66,0.00013973,2]
[419960383,1775557848403,-301.693458,0.00013973,2]
[419960384,1775557848412,-301.693458,0.00013973,2]
[419960385,1775557848422,-301.693458,0.00013973,2]
[419960386,1775557848432,-301.693458,0.00013973,2]
[419960387,1775557848441,-785.92,0.00013973,2]
[419960388,1775557848451,-150.0,0.00013979,2]
[419960389,1775557848461,-2364.0,0.00013985,2]
[419960390,1775557848471,-150.0,0.00013985,2]
[419960391,1775557848480,-200.404802,0.00014,2]
[419960392,1775557848490,-150.0,0.00014003,2]
[419960393,1775557848501,-502.0,0.00014004,2]
[419960394,1775557848510,-150.0,0.00014005,2]
[419960395,1775557848519,-751.78254434,0.00014006,2]
[419960396,1775557848529,-150.0,0.0001402,2]
[419960397,1775557848539,-150.0,0.00014022,2]
[419960398,1775557848548,-150.0,0.00014029,2]
[419960399,1775557848558,-150.0,0.00014045,2]
[419960400,1775557848568,-150.0,0.00014045,2]
[419960401,1775557848578,-310.0,0.0001405,30]
[419960402,1775557848587,-200.0,0.0001405,30]
[419960403,1775557848596,-200.0,0.0001405,30]
[419960404,1775557848606,-200.0,0.0001405,30]
[419960405,1775557848616,-200.0,0.0001405,30]
[419960406,1775557848625,-312.0,0.0001405,30]
[419960407,1775557848635,-195.0,0.0001405,30]
[419960408,1775557848644,-150.0,0.0001405,30]
[419960409,1775557848654,-150.0,0.0001405,30]
[419960410,1775557848664,-150.0,0.0001405,30]
[419960411,1775557848674,-150.0,0.0001405,30]
[419960412,1775557848683,-156.0,0.0001405,30]
[419960413,1775557848693,-150.0,0.00014055,2]
[419960414,1775557848703,-150.0,0.00014055,2]
[419960415,1775557848712,-588.0,0.00014062,2]
[419960416,1775557848723,-150.0,0.00014068,2]
[419960417,1775557848733,-2364.0,0.00014069,2]
[419960418,1775557848742,-194.72792766,0.00014071,2]
[419960419,1775557848752,-150.0,0.00014073,2]
[419960420,1775557848762,-150.0,0.00014089,2]
[419960421,1775557848771,-150.0,0.00014089,2]
[419960422,1775557848780,-150.0,0.00014089,2]
[419960423,1775557848789,-150.0,0.00014089,2]
[419960424,1775557848798,-150.0,0.00014107,2]
[419960425,1775557848807,-166.66,0.0001411,2]
[419960426,1775557848817,-150.0,0.00014112,2]
[419960427,1775557848825,-314.13,0.00014118,2]
[419960428,1775557848835,-150.0,0.00014123,2]
[419960429,1775557848843,-150.0,0.00014124,2]
[419960430,1775557848853,-193.21500475,0.00014131,2]
[419960431,1775557848861,-150.0,0.00014132,2]
[419960432,1775557848871,-151.0,0.00014137,2]
[419960433,1775557848880,-151.0,0.00014137,2]
[419960434,1775557848889,-151.0,0.00014137,2]
[419960435,1775557848898,-151.0,0.00014137,2]
[419960436,1775557848907,-430.29762,0.00014137,2]
[419960437,1775557848916,-151.0,0.00014137,2]
[419960438,1775557848925,-430.29762,0.00014137,2]
[419960439,1775557848934,-151.0,0.00014137,2]
[419960440,1775557848943,-430.29762,0.00014137,2]
[419960441,1775557848953,-151.0,0.00014137,2]
[419960442,1775557848962,-430.29762,0.00014137,2]
[419960443,1775557848971,-151.0,0.00014137,2]
[419960444,1775557848980,-1744.441802,0.00014137,2]
[419960445,1775557848989,-1744.441802,0.00014137,2]
[419960446,1775557848999,-1744.441802,0.00014137,2]
[419960447,1775557849009,-1744.441802,0.00014137,2]
[419960448,1775557849019,-239.339524,0.00014137,2]
[419960449,1775557849028,-239.339524,0.00014137,2]
[419960450,1775557849038,-239.339524,0.00014137,2]
[419960451,1775557849048,-239.339524,0.00014137,2]
[419960452,1775557849058,-151.0,0.00014137,2]
[419960453,1775557849067,-218.502403,0.00014137,2]
[419960454,1775557849076,-151.0,0.00014137,2]
[419960455,1775557849086,-151.0,0.00014137,2]
[419960456,1775557849095,-218.502403,0.00014137,2]
[419960457,1775557849104,-151.0,0.00014137,2]
[419960458,1775557849114,-218.502403,0.00014137,2]
[419960459,1775557849123,-151.0,0.00014137,2]
[419960460,1775557849133,-218.502403,0.00014137,2]
[419960461,1775557849143,-151.0,0.00014137,2]
[419960462,1775557849153,-151.0,0.00014137,2]
[419960463,1775557849163,-151.0,0.00014137,2]
[419960464,1775557849172,-151.0,0.00014137,2]
[419960465,1775557849182,-151.0,0.00014137,2]
[419960466,1775557849192,-365.383153,0.00014137,2]
[419960467,1775557849202,-365.383153,0.00014137,2]
[419960468,1775557849212,-365.383153,0.00014137,2]
[419960469,1775557849221,-365.383153,0.00014137,2]
[419960470,1775557849230,-151.0,0.00014137,2]
[419960471,1775557849240,-437.252556,0.00014137,2]
[419960472,1775557849250,-151.0,0.00014137,2]
[419960473,1775557849262,-437.252556,0.00014137,2]
[419960474,1775557849271,-437.252556,0.00014137,2]
[419960475,1775557849281,-437.252556,0.00014137,2]
[419960476,1775557849291,-151.0,0.00014137,2]
[419960477,1775557849301,-151.0,0.00014137,2]
[419960478,1775557849310,-588.0,0.00014137,2]
[419960479,1775557849320,-2364.0,0.00014149,2]
[419960480,1775557849330,-150.0,0.0001415,2]
[419960481,1775557849340,-150.0,0.00014159,2]
[419960482,1775557849350,-150.0,0.00014159,2]
[419960483,1775557849361,-150.0,0.00014159,2]
[419960484,1775557849370,-588.0,0.00014161,2]
[419960485,1775557849380,-229.919702,0.00014161,2]
[419960486,1775557849390,-151.0,0.00014161,2]
[419960487,1775557849399,-151.0,0.00014172,2]
[419960488,1775557849409,-853.0,0.00014172,2]
[419960489,1775557849418,-195.0,0.00014172,2]
[419960490,1775557849427,-1512.0,0.00014172,2]
[419960491,1775557849437,-6712.0,0.00014172,2]
[419960492,1775557849446,-4311.0,0.00014172,2]
[419960493,1775557849456,-1685.0,0.00014172,2]
[419960494,1775557849466,-1136.0,0.00014172,2]
[419960495,1775557849476,-150.0,0.00014173,2]
[419960496,1775557849487,-150.0,0.00014178,2]
[419960497,1775557849496,-150.0,0.00014178,2]
[419960498,1775557849507,-150.0,0.00014194,2]
[419960499,1775557849516,-150.0,0.00014195,2]
[419960500,1775557849526,-150.0,0.00014211,2]
[419960501,1775557849538,-150.0,0.00014211,2]
[419960502,1775557849548,-150.0,0.00014211,2]
[419960503,1775557849558,-150.0,0.00014224,2]
[419960504,1775557849568,-150.0,0.00014228,2]
[419960505,1775557849578,-150.0,0.00014244,2]
[419960506,1775557849587,-166.66,0.00014247,2]
[419960507,1775557849596,-785.92,0.00014247,2]
[419960508,1775557849606,-150.0,0.00014258,2]
[419960509,1775557849616,-150.0,0.00014263,2]
[419960510,1775557849626,-150.0,0.00014263,2]
[419960511,1775557849636,-150.0,0.00014272,2]
[419960512,1775557849645,-150.0,0.00014274,2]
[419960513,1775557849655,-2364.0,0.00014296,2]
[419960514,1775557849665,-150.0,0.00014298,2]
[419960515,1775557849675,-739.36,0.000143,2]
[419960516,1775557849684,-800.0,0.000143,2]
[419960517,1775557849694,-800.0,0.000143,2]
[419960518,1775557849704,-800.0,0.000143,2]
[419960519,1775557849714,-800.0,0.000143,2]
[419960520,1775557849724,-800.0,0.000143,2]
[419960521,1775557849733,-800.0,0.000143,2]
[419960522,1775557849743,-800.0,0.000143,2]
[419960523,1775557849752,-800.0,0.000143,2]
[419960524,1775557849761,-800.0,0.000143,2]
[419960525,1775557849771,-800.0,0.000143,2]
[419960526,1775557849781,-800.0,0.000143,2]
[419960527,1775557849791,-800.0,0.000143,2]
[419960528,1775557849801,-800.0,0.000143,2]
[419960529,1775557849810,-800.0,0.000143,2]
[419960530,1775557849819,-800.0,0.000143,2]
[419960531,1775557849830,-800.0,0.000143,2]
[419960532,1775557849839,-150.0,0.0001431,2]
[419960533,1775557849849,-150.0,0.0001431,2]
[419960534,1775557849859,-150.0,0.00014315,2]
[419960535,1775557849868,-500.0,0.00014317,2]
[419960536,1775557849878,-150.0,0.00014322,2]
[419960537,1775557849887,-150.0,0.00014324,2]
[419960538,1775557849897,-150.0,0.00014332,2]
[419960539,1775557849906,-150.0,0.00014332,2]
[419960540,1775557849916,-150.0,0.00014332,2]
[419960541,1775557849925,-150.0,0.00014367,2]
[419960542,1775557849935,-150.0,0.00014367,2]
[419960543,1775557849945,-150.0,0.00014367,2]
[419960544,1775557849954,-2364.0,0.0001437,2]
[419960545,1775557849964,-150.0,0.00014374,2]
[419960546,1775557849973,-150.0,0.00014377,2]
[419960547,1775557849982,-588.0,0.00014383,2]
[419960548,1775557849992,-889.08,0.00014384,2]
[419960549,1775557850003,-166.66,0.00014384,2]
[419960550,1775557850013,-985.75,0.00014384,2]
[419960551,1775557850024,-150.0,0.00014385,2]
[419960552,1775557850033,-150.0,0.00014393,2]
[419960553,1775557850043,-2837.0,0.000144,2]
[419960554,1775557850053,-150.0,0.00014402,2]
[419960555,1775557850063,-150.0,0.00014419,2]
[419960556,1775557850074,-150.0,0.00014425,2]
[419960557,1775557850084,-150.0,0.00014437,2]
[419960558,1775557850093,-588.0,0.00014441,2]
[419960559,1775557850103,-150.0,0.00014443,2]
[419960560,1775557850113,-150.0,0.00014443,2]
[419960561,1775557850124,-150.0,0.00014449,2]
[419960562,1775557850134,-150.0,0.00014454,2]
[419960563,1775557850145,-150.0,0.00014454,2]
[419960564,1775557850155,-2364.0,0.00014459,2]
[419960565,1775557850166,-150.0,0.00014471,2]
[419960566,1775557850177,-150.0,0.00014471,2]
[419960567,1775557850186,-152.0,0.00014474,5]
[419960568,1775557850197,-151.0,0.00014474,2]
[419960569,1775557850206,-151.0,0.00014474,2]
[419960570,1775557850216,-151.0,0.00014474,2]
[419960571,1775557850226,-151.0,0.00014474,2]
[419960572,1775557850236,-151.0,0.00014474,2]
[419960573,1775557850247,-151.0,0.00014474,2]
[419960574,1775557850257,-151.0,0.00014474,2]
[419960575,1775557850267,-171.786358,0.00014474,2]
[419960576,1775557850278,-151.0,0.00014474,2]
[419960577,1775557850289,-182.426512,0.00014474,2]
[419960578,1775557850299,-425.554164,0.00014474,2]
[419960579,1775557850309,-182.426512,0.00014474,2]
[419960580,1775557850319,-425.554164,0.00014474,2]
[419960581,1775557850328,-182.426512,0.00014474,2]
[419960582,1775557850338,-425.554164,0.00014474,2]
[419960583,1775557850347,-151.0,0.00014474,2]
[419960584,1775557850356,-182.426512,0.00014474,2]
[419960585,1775557850366,-731.85744,0.00014474,2]
[419960586,1775557850375,-425.554164,0.00014474,2]
[419960587,1775557850384,-151.0,0.00014474,2]
[419960588,1775557850393,-731.85744,0.00014474,2]
[419960589,1775557850402,-731.85744,0.00014474,2]
[419960590,1775557850411,-221.560918,0.00014474,2]
[419960591,1775557850420,-731.85744,0.00014474,2]
[419960592,1775557850430,-221.560918,0.00014474,2]
[419960593,1775557850439,-221.560918,0.00014474,2]
[419960594,1775557850448,-221.560918,0.00014474,2]
[419960595,1775557850458,-150.0,0.00014475,2]
[419960596,1775557850467,-280.12374255,0.000145,2]
[419960597,1775557850609,-150.0,0.00014506,2]
[419960598,1775557850629,-150.0,0.00014509,2]
[419960599,1775557850639,-150.0,0.00014512,2]
[419960600,1775557850648,-150.0,0.00014515,2]
[419960601,1775557850657,-588.0,0.00014516,2]
[419960602,1775557850667,-350.0,0.00014517,60]
[419960603,1775557850676,-350.0,0.00014517,60]
[419960604,1775557850685,-206.0,0.00014517,60]
[419960605,1775557850694,-350.0,0.00014517,60]
[419960606,1775557850704,-350.0,0.00014517,60]
[419960607,1775557850713,-290.0,0.00014517,60]
[419960608,1775557850723,-785.92,0.00014521,2]
[419960609,1775557850732,-539.98064803,0.00014521,2]
[419960610,1775557850742,-2000.0,0.00014521,2]
[419960611,1775557850751,-1600.0,0.00014522,2]
[419960612,1775557850760,-150.0,0.00014523,2]
[419960613,1775557850771,-150.0,0.00014525,2]
[419960614,1775557850781,-150.0,0.00014541,2]
[419960615,1775557850790,-1050.0,0.0001456,60]
[419960616,1775557850800,-1050.0,0.0001456,60]
[419960617,1775557850810,-991.0,0.0001456,60]
[419960618,1775557850820,-1050.0,0.0001456,60]
[419960619,1775557850829,-1050.0,0.0001456,60]
[419960620,1775557850839,-952.0,0.0001456,60]
[419960621,1775557850848,-213.0,0.0001456,60]
[419960622,1775557850858,-213.0,0.0001456,60]
[419960623,1775557850867,-150.0,0.0001456,60]
[419960624,1775557850877,-257.0,0.0001456,60]
[419960625,1775557850887,-200.0,0.0001456,60]
[419960626,1775557850897,-200.0,0.0001456,60]
[419960627,1775557850909,-159.0,0.0001456,60]
[419960628,1775557850920,-750.0,0.0001456,60]
[419960629,1775557850930,-750.0,0.0001456,60]
[419960630,1775557850940,-681.0,0.0001456,60]
[419960631,1775557850949,-165.94573115,0.00014573,2]
[419960632,1775557850959,-500.93020088,0.00014573,2]
[419960633,1775557850969,-501.47777221,0.00014573,2]
[419960634,1775557850978,-500.0,0.00014573,2]
[419960635,1775557850988,-501.78348343,0.00014573,2]
[419960636,1775557850997,-500.0,0.00014573,2]
[419960637,1775557851007,-500.0,0.00014573,2]
[419960638,1775557851017,-500.88623589,0.00014573,2]
[419960639,1775557851027,-500.0,0.00014573,2]
[419960640,1775557851037,-557.10851207,0.00014573,2]
[419960641,1775557851047,-501.62175176,0.00014573,2]
[419960642,1775557851057,-500.0,0.00014573,2]
[419960643,1775557851067,-500.0,0.00014573,2]
[419960644,1775557851076,-500.29713712,0.00014573,2]
[419960645,1775557851085,-500.0,0.00014573,2]
[419960646,1775557851095,-337.90453598,0.00014573,2]
[419960647,1775557851105,-500.27198937,0.00014573,2]
[419960648,1775557851115,-502.54510633,0.00014573,2]
[419960649,1775557851126,-500.0,0.00014573,2]
[419960650,1775557851136,-500.0,0.00014573,2]
[419960651,1775557851146,-500.0,0.00014573,2]
[419960652,1775557851156,-500.66821208,0.00014573,2]
[419960653,1775557851166,-500.0,0.00014573,2]
[419960654,1775557851176,-500.43383469,0.00014573,2]
[419960655,1775557851186,-500.0,0.00014573,2]
[419960656,1775557851197,-500.0,0.00014573,2]
[419960657,1775557851207,-500.0,0.00014573,2]
[419960658,1775557851216,-500.0,0.00014573,2]
[419960659,1775557851226,-212.41975736,0.00014573,2]
[419960660,1775557851237,-500.0,0.00014573,2]
[419960661,1775557851247,-500.0,0.00014573,2]
[419960662,1775557851258,-500.0,0.00014573,2]
[419960663,1775557851269,-392.62814919,0.00014573,2]
[419960664,1775557851279,-159.84173656,0.00014573,2]
[419960665,1775557851289,-502.01782256,0.00014573,2]
[419960666,1775557851298,-500.0,0.00014573,2]
[419960667,1775557851308,-500.0,0.00014573,2]
[419960668,1775557851318,-500.0,0.00014573,2]
[419960669,1775557851329,-343.16771642,0.00014573,2]
[419960670,1775557851339,-500.0,0.00014573,2]
[419960671,1775557851349,-151.0,0.00014573,2]
[419960672,1775557851358,-163.695412,0.00014573,2]
[419960673,1775557851368,-163.695412,0.00014573,2]
[419960674,1775557851378,-163.695412,0.00014573,2]
[419960675,1775557851388,-163.695412,0.00014573,2]
[419960676,1775557851398,-153.8605139,0.00014575,2]
[419960677,1775557851409,-180.28980293,0.00014575,2]
[419960678,1775557851419,-271.99247909,0.00014575,2]
[419960679,1775557851429,-154.60460595,0.00014575,2]
[419960680,1775557851439,-298.85849235,0.00014575,2]
[419960681,1775557851449,-235.15464871,0.00014575,2]
[419960682,1775557851459,-256.88669673,0.00014575,2]
[419960683,1775557851468,-154.46963995,0.00014575,2]
[419960684,1775557851478,-252.79978936,0.00014575,2]
[419960685,1775557851488,-153.13125461,0.00014575,2]
[419960686,1775557851499,-160.19810702,0.00014575,2]
[419960687,1775557851509,-153.19960083,0.00014575,2]
[419960688,1775557851518,-500.0,0.00014599,2]
[419960689,1775557851528,-500.0,0.00014599,2]
[419960690,1775557851538,-481602.91,0.000146,2]
[419960691,1775557851548,-151.0,0.000146,2]
[419960692,1775557851557,-301.693458,0.000146,2]
[419960693,1775557851567,-301.693458,0.000146,2]
[419960694,1775557851577,-301.693458,0.000146,2]
[419960695,1775557851587,-301.693451,0.000146,2]
[419960696,1775557851597,-197.677027,0.000146,2]
[419960697,1775557851607,-263.558033,0.000146,2]
[419960698,1775557851616,-151.0,0.000146,2]
[419960699,1775557851626,-151.0,0.000146,2]
[419960700,1775557851636,-151.0,0.000146,2]
[419960701,1775557851646,-430.29762,0.000146,2]
[419960702,1775557851655,-151.0,0.000146,2]
[419960703,1775557851665,-430.29762,0.000146,2]
[419960704,1775557851675,-151.0,0.000146,2]
[419960705,1775557851684,-430.29762,0.000146,2]
[419960706,1775557851694,-151.0,0.000146,2]
[419960707,1775557851708,-430.29762,0.000146,2]
[419960708,1775557851718,-151.0,0.000146,2]
[419960709,1775557851728,-1744.441802,0.000146,2]
[419960710,1775557851738,-1744.441802,0.000146,2]
[419960711,1775557851747,-1744.441802,0.000146,2]
[419960712,1775557851758,-1744.441803,0.000146,2]
[419960713,1775557851768,-239.339524,0.000146,2]
[419960714,1775557851777,-239.339524,0.000146,2]
[419960715,1775557851787,-239.339524,0.000146,2]
[419960716,1775557851797,-239.33953,0.000146,2]
[419960717,1775557851806,-151.0,0.000146,2]
[419960718,1775557851816,-218.502403,0.000146,2]
[419960719,1775557851825,-151.0,0.000146,2]
[419960720,1775557851835,-152.406374,0.000146,2]
[419960721,1775557851846,-218.502403,0.000146,2]
[419960722,1775557851855,-151.0,0.000146,2]
[419960723,1775557851865,-218.502403,0.000146,2]
[419960724,1775557851875,-151.0,0.000146,2]
[419960725,1775557851884,-218.502408,0.000146,2]
[419960726,1775557851895,-151.0,0.000146,2]
[419960727,1775557851904,-296.706633,0.000146,2]
[419960728,1775557851914,-151.0,0.000146,2]
[419960729,1775557851924,-151.0,0.000146,2]
[419960730,1775557851935,-151.0,0.000146,2]
[419960731,1775557851945,-365.383153,0.000146,2]
[419960732,1775557851955,-365.383153,0.000146,2]
[419960733,1775557851965,-365.383153,0.000146,2]
[419960734,1775557851976,-365.383149,0.000146,2]
[419960735,1775557851986,-151.0,0.000146,2]
[419960736,1775557851996,-437.252556,0.000146,2]